[Event "Israeli Team-ch 2023"]
[Site "Petah Tikva"]
[Date "2023.01.20"]
[Round "3.20"]
[White "Gruenfeld, Yehuda"]
[Black "Erenberg, Ariel"]
[Result "0-1"]
[ECO "C92"]
[WhiteElo "2414"]
[BlackElo "2504"]
[Annotator "TA"]
[PlyCount "150"]
[EventDate "2023.01.13"]
[EventCountry "ISR"]
[SourceTitle "playchess.com"]
[Source "ChessBase"]
[SourceQuality "1"]
[TimeControl "40/5400+30:1800+30"]

{[%evp 30,150,10,7,21,8,36,33,33,21,37,0,0,0,0,0,-7,-14,-22,-7,0,-11,0,0,7,0,0,0,0,0,-9,-14,0,0,0,0,0,-20,18,17,15,22,21,28,28,25,29,0,0,0,42,31,28,0,0,0,0,0,0,-30,0,0,0,0,45,32,117,119,256,100,105,89,93,99,111,45,113,91,94,13,16,-8,-8,-6,-6,-172,-179,-180,-173,-173,-173,-173,-173,-173,-173,-345,-344,-335,-330,-372,-173,-173,-173,-173,-165,-226,-69,-70,-70,-213,-206,-206,-206,-6710,-5544,-4622,-4618,-12559,-12497,-6466,-5006,-4930,-4930]} 1. e4 {[%emt 0:00:30]} e5 {[%emt 0:03:27]} 2. Nf3 {[%emt 0:00:13]} Nc6 {[%emt 0:00:13]} 3. Bb5 {[%emt 0:00:13]} a6 {[%emt 0:00:08]} 4. Ba4 {[%emt 0:00:05]} Nf6 {[%emt 0:00:06]} 5. O-O {[%emt 0:00:27]} Be7 {[%emt 0:00:55]} 6. Re1 {[%emt 0:00:26]} b5 {[%emt 0:00:21]} 7. Bb3 {[%emt 0:00:04]} d6 {[%emt 0:00:46]} 8. c3 {[%emt 0:00:08]} O-O {[%emt 0:00:08]} 9. h3 {[%emt 0:00:03]} Bb7 {[%emt 0:02:45]} 10. d4 {[%emt 0:00:11]} Re8 {[%emt 0:00:17]} 11. Nbd2 {[%emt 0:01:06]} Bf8 {[%emt 0:00:30]} 12. Bc2 {[%emt 0:01:18]} g6 {[%emt 0:07:43]} 13. d5 {[%emt 0:02:38]} Nb8 {[%emt 0:01:25][%cal Bc6b8,Bb8d7,Bd7c5][%mdl 32]} 14. b3 {[%emt 0:00:16]} c6 {[%emt 0:01:16]} 15. c4 {[%emt 0:00:06]} Nbd7 {[%emt 0:00:34]} 16. Nf1 {[%emt 0:03:19]} bxc4 {[%emt 0:00:15] C92: Closed Ruy Lopez: 9...Be6, Karpov and Flohr-Zaitsev Variations.} 17. bxc4 {[%emt 0:00:08]} Nc5 {[%emt 0:00:14]} 18. Rb1 {[%emt 0:06:32]} Qc7 {[%emt 0:02:27] [#] White is slightly better.} 19. Bg5 $146 {[%emt 0:07:05]} ({Predecessor:} 19. Ba3 Nfd7 20. Ne3 Reb8 21. Qd2 a5 22. Qc3 Bh6 23. dxc6 Bxc6 24. Nd5 Bxd5 25. cxd5 {½-½ Brikov,I (2403)-Shkurkin,A (2223) Tula Rjazanov Memorial 2016 (6)}) 19... Bg7 {[%emt 0:16:47]} 20. Ng3 {[%emt 0:12:37]} a5 {[%emt 0:00:31]} 21. Nd2 {[%emt 0:02:06]} Ba6 {[%emt 0:04:41]} 22. Qf3 {[%emt 0:02:01]} Nfd7 {[%emt 0:00:24]} 23. h4 {[%emt 0:02:13]} cxd5 {[%emt 0:15:14]} 24. cxd5 {[%emt 0:00:23]} Rab8 {[%emt 0:00:13]} (24... h6 $5 25. Be3 $8 h5 $11) 25. Qa3 {[%emt 0:05:17]} a4 {[%emt 0:02:45]} 26. h5 {[%emt 0:02:15]} (26. Bxa4 $2 Qa5 $19) 26... Qa5 {[%emt 0:03:20]} 27. Rec1 {[%emt 0:09:51]} Rec8 {[%emt 0:07:09]} 28. Nf3 {[%emt 0:05:51]} Nb6 {[%emt 0:01:50][%cal Bd7b6,Bb6c4,Bc4b2][%mdl 32] [#] Hoping for ...Nc4.} 29. Qb4 {[%emt 0:04:05]} Qxb4 {[%emt 0:01:03]} 30. Rxb4 {[%emt 0:00:07]} Nc4 {[%emt 0:02:56]} 31. Rcb1 {[%emt 0:00:46][%cal Bc1b1,Bb1b4,Bb4b6][%mdl 32]} Rxb4 {[%emt 0:03:01]} 32. Rxb4 {[%emt 0:00:05]} a3 {[%emt 0:01:21]} 33. Nd2 {[%emt 0:02:26]} Nb2 {[%emt 0:02:29]} 34. Rb6 {[%emt 0:05:17]} Bf8 {[%emt 0:01:30]} 35. Nb1 {[%emt 0:09:48]} Nc4 {[%emt 0:12:15]} 36. Rb4 {[%emt 0:01:01]} Ra8 {[%emt 0:03:03]} 37. Nf1 {[%emt 0:06:38]} Nb2 {[%emt 0:02:03]} 38. Nfd2 {[%emt 0:03:46]} (38. Nxa3 Bxf1 39. Kxf1 Nbd3 40. Bxd3 Nxd3 $15) 38... Nbd3 $36 {[%emt 0:01:18][%mdl 2048] Black has the initiative.} 39. Rb6 {[%emt 0:01:18]} f5 {[%emt 0:01:50]} 40. hxg6 {[%emt 0:06:01]} (40. f3 {is interesting.} Ne1 41. Bd1 Bd3 42. Be3) 40... hxg6 {[%emt 0:00:04]} 41. exf5 {[%emt 0:02:18]} gxf5 {[%emt 0:00:16]} 42. Nxa3 {[%emt 0:04:25]} e4 {[%emt 0:03:49]} 43. Nab1 {[%emt 0:11:35]} Nd7 {[%emt 0:07:00]} 44. Rb3 {[%emt 0:02:43]} Nc1 {[%emt 0:02:36][%mdl 1024] Black has compensation.} (44... Rc8 $5 {[%cal Rc8c2]} 45. Rc3 N7c5 $15) 45. Ra3 {[%emt 0:01:24]} Ne2+ {[%emt 0:02:07]} 46. Kh1 {[%emt 0:00:23]} Ne5 {[%emt 0:03:12][%cal Oa8c8]} 47. Bd1 {[%emt 0:00:34]} Rc8 {[%emt 0:01:23]} 48. Nxe4 $16 {[%emt 0:02:54]} (48. Rxa6 $2 {too greedy.} Rc1 49. Nf1 Rxd1 $19) 48... Bd3 {[%emt 0:03:52]} (48... Bc4 $16 {keeps fighting.}) 49. Nec3 $2 {[%emt 0:02:35]} (49. Nf6+ $18 {has better winning chances.} Kg7 50. Rxd3 {[%mdl 64] Remove Defender} Nxd3 51. Bxe2 Nxf2+ 52. Kg1) 49... Nd4 {[%emt 0:01:17]} 50. Ra4 {[%emt 0:01:51]} Nb5 {[%emt 0:00:57]} 51. Nxb5 {[%emt 0:01:28]} Bxb5 {[%emt 0:00:02]} 52. Rb4 {[%emt 0:00:44]} ({Better is} 52. Ra3 $16) 52... Bd3 {[%emt 0:02:41]} (52... Nd3 $14 53. Rxb5 Nxf2+ 54. Kh2 Nxd1) 53. f3 {[%emt 0:02:11]} Kf7 {[%emt 0:01:20]} 54. Kg1 {[%emt 0:00:22]} ({White should try} 54. Na3 $16) 54... Kg6 $11 {[%emt 0:01:09]} 55. Bf4 {[%emt 0:00:15]} Bh6 {[%emt 0:01:08] And now ...Bxf4 would win.} 56. Bxh6 {[%emt 0:01:10]} Kxh6 {[%emt 0:00:01]} 57. Rb3 $2 {[%emt 0:00:34]} (57. f4 $1 $11 Rc1 58. fxe5 (58. Nc3 $2 Nc4 $19) 58... Rxd1+ 59. Kf2 Bxb1 60. Ke2 Rxd5 61. Rxb1) 57... Rc1 $1 $19 {[%emt 0:00:28][%csl LRb1,LRd1]} 58. Nc3 {[%emt 0:00:09] [#]} Bc2 $1 {[%emt 0:00:44][%cal Oc2b3]} 59. Rb6 {[%emt 0:00:06]} Nc4 {[%emt 0:02:35]} 60. Rc6 {[%emt 0:00:40]} Bxd1 {[%emt 0:00:06]} (60... Rxd1+ $2 61. Nxd1 Bxd1 62. Rxc4 $18) 61. Nxd1 {[%emt 0:00:16]} Rxd1+ {[%emt 0:00:10][%mdl 4096] Endgame KRN-KR} 62. Kh2 $2 {[%emt 0:00:16]} (62. Kf2 Rd4 63. a4) 62... Rd4 {[%emt 0:00:26]} 63. a4 {[%emt 0:00:02]} Kg5 {[%emt 0:01:12] ...Kf4 is the strong threat.} 64. a5 {[%emt 0:00:04]} Nxa5 {[%emt 0:00:22]} (64... Kf4 $142 {Threatens to win with ...Ne3.} 65. a6 Ne3 66. Rxd6 Nf1+ 67. Kh3 (67. Kg1 {is a self mate.} Ng3 68. Re6 Rd1+) 67... Kg5 68. f4+ Rxf4 69. Rg6+ Kxg6 70. d6 Kg5 71. g4 Rxg4 72. d7 Rg3#) 65. Rxd6 {[%emt 0:00:07]} Nc4 {[%emt 0:00:07]} 66. Rd8 {[%emt 0:00:06]} Ne3 {[%emt 0:01:05][%cal Og5f4]} 67. d6 {[%emt 0:00:24]} (67. Kg3 {was worth a try.}) 67... Nf1+ $2 {[%emt 0:00:29]} (67... Kf4 $19 {White must now prevent ...Rd2.} 68. Rb8 Rxd6 69. Rb4+ Kg5) 68. Kg1 $15 {[%emt 0:00:22][%cal Od6d7] Strongly threatening d7!} Ng3 $1 {[%emt 0:00:15]} 69. Kf2 {[%emt 0:00:38]} (69. Kh2 $1 $15 f4 70. Kh3) 69... Kf4 {[%emt 0:00:20]} 70. Ke1 {[%emt 0:00:17] Prevents Rd1+} Rd5 {[%emt 0:00:47]} 71. d7 $2 {[%emt 0:01:13]} (71. Rd7) 71... Rd3 $19 {[%emt 0:00:27] Black is clearly winning.} 72. Ra8 {[%emt 0:00:33]} Rxd7 {[%emt 0:00:08]} 73. Ra4+ {[%emt 0:00:08]} Ke3 {[%emt 0:01:28] ( -> ...Rd3)} 74. Ra3+ {[%emt 0:00:46]} Rd3 {[%emt 0:01:23]} 75. Ra8 {[%emt 0:00:16]} Rb3 {[%emt 0:00:21] What a bad dream for White.   Weighted Error Value: White=0.20 (precise) /Black=0.15 (very precise)} 0-1

[Event "Israeli Team-ch 2023"]
[Site "Petah Tikva"]
[Date "2023.01.20"]
[Round "3.21"]
[White "Raznikov, Danny"]
[Black "Kantsler, Boris"]
[Result "1/2-1/2"]
[ECO "C62"]
[WhiteElo "2482"]
[BlackElo "2407"]
[Annotator "TA"]
[PlyCount "71"]
[EventDate "2023.01.13"]
[EventCountry "ISR"]
[SourceTitle "playchess.com"]
[Source "ChessBase"]
[SourceQuality "1"]
[TimeControl "40/5400+30:1800+30"]

{[%evp 14,71,20,16,23,16,14,13,24,0,20,17,15,13,30,16,39,29,91,82,81,85,83,64,80,21,22,12,25,4,64,69,70,59,88,12,12,18,19,10,9,0,0,0,0,0,0,0,0,0,0,0,0,0,0,0,0,0,0,0]} 1. d4 {[%emt 0:00:17]} d6 {[%emt 0:00:44]} 2. e4 {[%emt 0:01:01]} Nf6 {[%emt 0:00:05]} 3. Nc3 {[%emt 0:00:12]} e5 {[%emt 0:00:12]} 4. Nf3 {[%emt 0:01:09]} exd4 {[%emt 0:00:29]} 5. Qxd4 {[%emt 0:04:17]} Nc6 {[%emt 0:04:23]} 6. Bb5 {[%emt 0:01:05]} Bd7 {[%emt 0:00:32]} 7. Bxc6 {[%emt 0:05:25]} Bxc6 {[%emt 0:00:53]} 8. O-O {[%emt 0:03:01]} Be7 {[%emt 0:00:17] C62: Ruy Lopez: Steinitz Defence.} 9. b3 {[%emt 0:10:34]} O-O {[%emt 0:09:44]} 10. Re1 {[%emt 0:12:44]} Re8 {[%emt 0:06:45]} 11. Bb2 {[%emt 0:03:33]} Bf8 {[%emt 0:01:01]} 12. Rad1 {[%emt 0:01:25] [#]} a6 $146 {[%emt 0:10:46]} ({Predecessor:} 12... b6 13. a3 Qc8 14. Nd5 Bxd5 15. exd5 Qf5 16. c4 Ne4 17. Qe3 Rac8 18. Nd4 Qe5 {1-0 Padmini,R (2257)-Tasnin,A Commonwealth-ch 2008 (1)}) 13. h3 {[%emt 0:02:04]} Qc8 {[%emt 0:06:04]} 14. Re3 {[%emt 0:11:34]} Qe6 {[%emt 0:07:04]} 15. Rde1 {[%emt 0:07:24]} Nd7 {[%emt 0:02:03]} (15... Qd7 $11 {remains equal.}) 16. Nd5 $16 {[%emt 0:05:57]} Rac8 {[%emt 0:01:17]} 17. c4 {[%emt 0:05:19] White is much more active.} Qh6 {[%emt 0:06:35]} 18. Nh2 {[%emt 0:04:31][%cal Bf3h2,Bh2f1,Bf1g3][%mdl 32]} Bxd5 {[%emt 0:03:01]} 19. Qxd5 {[%emt 0:02:11]} (19. exd5 $16 Rxe3 20. Rxe3 (20. Qxe3 Qxe3 21. Rxe3 g6 $11)) 19... c6 $11 {[%emt 0:01:24]} 20. Qd4 {[%emt 0:01:32]} b5 {[%emt 0:04:23]} 21. Nf1 {[%emt 0:01:30]} bxc4 {[%emt 0:07:32]} ({Better is} 21... Qe6 $11) 22. Qxc4 $14 {[%emt 0:00:52]} Nc5 {[%emt 0:01:39]} 23. Ng3 {[%emt 0:00:52]} ({Weaker is} 23. Rf3 d5 24. Qc2 dxe4 $17) 23... Qg6 {[%emt 0:04:28][%cal Od6d5]} 24. Qd4 {[%emt 0:06:25]} (24. Nf5 $16) 24... d5 $11 {[%emt 0:03:18] The position is equal.} 25. exd5 {[%emt 0:02:46]} Rxe3 {[%emt 0:00:49]} 26. Rxe3 {[%emt 0:00:16][%cal Od5d6] aiming for d6!} cxd5 {[%emt 0:00:46]} 27. Kh2 {[%emt 0:03:18]} Ne6 {[%emt 0:01:51]} 28. Qxd5 {[%emt 0:00:38]} Rc2 {[%emt 0:00:06][%csl LRb2,LRf2]} 29. Be5 {[%emt 0:00:50]} Rxf2 {[%emt 0:01:14]} 30. Re2 {[%emt 0:00:46]} Rxe2 {[%emt 0:00:41]} 31. Nxe2 {[%emt 0:00:02]} Qc2 {[%emt 0:01:19]} 32. Nd4 {[%emt 0:01:45]} Nxd4 {[%emt 0:02:20]} 33. Qxd4 {[%emt 0:00:04]} Qxa2 {[%emt 0:00:24]} 34. Bxg7 {[%emt 0:00:32]} Bxg7 {[%emt 0:00:08]} 35. Qd8+ {[%emt 0:00:04]} Bf8 {[%emt 0:00:04]} 36. Qg5+ {[%emt 0:00:03] Weighted Error Value: White=0.14 (very precise) /Black=0.11 (very precise)} 1/2-1/2

[Event "Israeli Team-ch 2023"]
[Site "Petah Tikva"]
[Date "2023.01.20"]
[Round "3.22"]
[White "Zaslavsky, Mikhail"]
[Black "Rozentalis, Eduardas"]
[Result "0-1"]
[ECO "A01"]
[WhiteElo "2430"]
[BlackElo "2507"]
[Annotator "TA"]
[PlyCount "80"]
[EventDate "2023.01.13"]
[EventCountry "ISR"]
[SourceTitle "playchess.com"]
[Source "ChessBase"]
[SourceQuality "1"]
[TimeControl "40/5400+30:1800+30"]

{[%evp 9,80,18,15,16,25,7,1,6,12,12,10,-19,-20,-11,-18,-14,-16,-15,-25,-13,-14,-22,-16,-75,-74,-74,-61,-64,-51,-66,-59,-64,-25,-59,0,0,0,0,0,0,0,-175,-181,-235,-217,-222,-210,-306,-305,-332,-312,-358,-353,-389,-385,-369,-351,-423,-404,-491,-392,-497,-460,-1067,-998,-1432,-1531,-5029,-4360,-29951,-7945,-29973,-1795]} 1. b3 {[%emt 0:00:02]} e5 {[%emt 0:01:45]} 2. Bb2 {[%emt 0:00:04]} d6 {[%emt 0:00:37]} 3. e3 {[%emt 0:03:31]} Nf6 {[%emt 0:01:10]} 4. d4 {[%emt 0:01:23]} Nbd7 {[%emt 0:01:43]} 5. c4 {[%emt 0:05:06]} c6 {[%emt 0:01:34]} 6. Nc3 {[%emt 0:00:22] A01: Nimzowitsch-Larsen Opening.} Be7 {[%emt 0:03:49]} 7. Be2 {[%emt 0:13:56]} O-O {[%emt 0:01:02]} 8. Nf3 {[%emt 0:00:08] The position is equal.} e4 {[%emt 0:01:56]} 9. Nd2 {[%emt 0:00:11]} d5 {[%emt 0:00:06]} 10. f3 {[%emt 0:04:47]} exf3 {[%emt 0:03:20]} 11. Bxf3 {[%emt 0:00:19]} Bb4 {[%emt 0:01:13]} 12. O-O {[%emt 0:02:05]} Re8 {[%emt 0:01:13]} 13. Re1 {[%emt 0:04:15]} Nf8 {[%emt 0:04:28] [#]} 14. e4 $146 {[%emt 0:23:46] Against Bf5} ({Predecessor:} 14. Qc2 Ne6 15. cxd5 cxd5 16. Rac1 Ng5 17. a3 Bf8 18. e4 Nxf3+ 19. Nxf3 Nxe4 20. Nxe4 {0-1 Di Giulio,M (2011)-Sabia,C (2174) Napoli Vomero Inverno op 3rd  2008 (4)}) 14... dxe4 {[%emt 0:07:24]} 15. Ndxe4 {[%emt 0:02:59]} Bf5 {[%emt 0:00:57] [#] Hoping for ...Bxe4.} 16. Re2 {[%emt 0:07:41]} (16. Nxf6+ $11 {keeps the balance.} Qxf6 17. Ne4) 16... Ne6 $17 {[%emt 0:08:14]} 17. a3 {[%emt 0:05:26]} Bf8 {[%emt 0:04:46]} 18. Nxf6+ {[%emt 0:01:53]} Qxf6 {[%emt 0:00:30]} 19. Ne4 {[%emt 0:02:07]} Bxe4 {[%emt 0:07:48]} 20. Bxe4 {[%emt 0:01:43]} Rad8 {[%emt 0:00:54]} (20... Nf4 $5 {[%cal Rf4e2]} 21. Re1 g6 $11) 21. Qe1 {[%emt 0:07:43]} Nxd4 {[%emt 0:12:55]} (21... Bd6 $1 $15 22. Bd3 (22. g3 Nxd4 23. Bxd4 Qxd4+ 24. Kg2 g6 $17) 22... Kf8) 22. Bxh7+ $1 $11 {[%emt 0:01:57][%mdl 64] [#] Discovered Attack} Kxh7 {[%emt 0:00:27]} 23. Rxe8 {[%emt 0:00:06]} Rxe8 {[%emt 0:00:41]} 24. Qxe8 {[%emt 0:00:04]} Nf3+ $1 {[%emt 0:00:18][%mdl 64] Discovered Attack} 25. Kh1 $2 {[%emt 0:03:00] Black continues to play with concentration.} (25. gxf3 $11 {and White has nothing to worry.} Bc5+ 26. Kf1 Qxf3+ 27. Ke1 Qf2+ 28. Kd1 Qxb2 29. Qe4+ Kg8 30. Rb1 Qxa3 31. Kc2) 25... Qxb2 $19 {[%emt 0:00:41]} 26. Rf1 {[%emt 0:06:04]} (26. Qe4+ $142 Kg8 27. Rb1) 26... Qe5 {[%emt 0:01:02]} (26... Bxa3 27. Qe4+ (27. Rxf3 $2 Qc1+) 27... Kg8 28. Qxf3 $18) 27. Qxe5 {[%emt 0:00:51]} Nxe5 {[%emt 0:00:05]} 28. b4 {[%emt 0:00:23]} (28. a4 $142) 28... b6 {[%emt 0:03:00][%cal Oh7g6]} ({Stronger than} 28... Nxc4 29. Rxf7 Bd6 30. Rd7 $17) 29. Rc1 {[%emt 0:01:59]} Kg6 {[%emt 0:00:50]} 30. h3 {[%emt 0:00:20]} Kf5 {[%emt 0:00:23]} 31. g4+ {[%emt 0:00:06]} Ke4 {[%emt 0:00:22]} 32. Kg2 {[%emt 0:00:32]} Be7 {[%emt 0:01:06]} 33. Kg3 {[%emt 0:01:02]} g5 {[%emt 0:00:46][%cal Bg7g5,Bg5h4][%mdl 32]} 34. Rf1 {[%emt 0:00:24]} Kd4 {[%emt 0:00:48]} (34... Nxc4 35. Re1+ Ne3 36. Kf2 $16) 35. Rf5 {[%emt 0:00:08]} Kxc4 {[%emt 0:00:49]} ({Weaker is} 35... Nxc4 36. Rxf7 Bd6+ 37. Kf2 $17) 36. h4 {[%emt 0:00:28]} (36. Rxe5 $2 {is the wrong capture.} Bd6 37. Kf3 Bxe5) (36. Kf2 $142 f6 37. Ke2) 36... gxh4+ {[%emt 0:00:32]} 37. Kh3 {[%emt 0:00:02]} Kd5 {[%emt 0:01:01] ...c5 is the strong threat.} 38. Rh5 {[%emt 0:00:32]} c5 {[%emt 0:00:29]} 39. bxc5 {[%emt 0:00:06]} bxc5 {[%emt 0:00:12] ( -> ...c4)} 40. g5 {[%emt 0:00:20]} Ng6 {[%emt 0:01:02] Weighted Error Value: White=1.19/Black=0.09 (flawless)} (40... c4 $142 41. Kxh4 c3 42. Kg3 c2 43. Rh1 Bxa3 44. Rg1 c1=Q 45. Rxc1 Bxc1 46. g6 Nxg6 47. Kf3 Bf4 48. Ke2 Ke4 49. Ke1 a5 50. Kf2 a4 51. Kg2 a3 52. Kh3 a2 53. Kg2 a1=Q 54. Kf2 Qb2+ 55. Kg1 Bg3 56. Kh1 Qh2#) 0-1

[Event "Israeli Team-ch 2023"]
[Site "Petah Tikva"]
[Date "2023.01.20"]
[Round "3.23"]
[White "Milikow, Yoav"]
[Black "Musyuk, Lior"]
[Result "1-0"]
[ECO "D35"]
[WhiteElo "2416"]
[BlackElo "2341"]
[Annotator "TA"]
[PlyCount "89"]
[EventDate "2023.01.13"]
[EventCountry "ISR"]
[SourceTitle "playchess.com"]
[Source "ChessBase"]
[SourceQuality "1"]
[TimeControl "40/5400+30:1800+30"]

{[%evp 15,89,11,17,5,13,13,13,18,11,0,50,62,50,33,38,33,35,16,64,58,277,264,360,362,319,43,41,6,8,8,5,0,122,104,686,667,677,375,955,951,924,913,1055,1116,1025,389,359,413,398,401,364,401,407,339,466,430,446,445,398,190,1025,1031,1042,1023,917,948,947,917,843,717,5214,5206,5073,2264,2272,1906]} 1. d4 {[%emt 0:00:05]} d5 {[%emt 0:01:02]} 2. c4 {[%emt 0:03:08]} e6 {[%emt 0:02:08]} 3. Nc3 {[%emt 0:00:08]} Nf6 {[%emt 0:00:23]} 4. cxd5 {[%emt 0:01:35]} exd5 {[%emt 0:00:10]} 5. Bg5 {[%emt 0:00:11]} c6 {[%emt 0:00:14]} 6. e3 {[%emt 0:00:59]} Be7 {[%emt 0:00:47]} 7. Bd3 {[%emt 0:00:16]} h6 {[%emt 0:00:41]} 8. Bh4 {[%emt 0:01:46]} O-O {[%emt 0:00:34]} 9. h3 {[%emt 0:07:59] D35: Queen's Gambit Declined: Exchange Variation.} Re8 {[%emt 0:02:15]} 10. Qc2 {[%emt 0:03:41]} Nh5 {[%emt 0:02:03]} 11. Bxe7 {[%emt 0:00:11] The position is equal.} (11. Bh7+ {feels hotter.} Kh8 12. Bxe7 Qxe7 13. Nge2) 11... Qxe7 {[%emt 0:00:40] [#]} 12. O-O-O $146 {[%emt 0:10:00]} ({Predecessor:} 12. Qe2 Nf4 13. exf4 Qd7 14. Qxe8+ Qxe8+ 15. Nge2 Nd7 16. O-O Nf6 17. Ng3 Qf8 18. a3 {0-1 Vagovic,M (1719)-Planka,P (1803) SVK-chT4 A21 1920 2019 (2.1)}) 12... g6 {[%emt 0:06:26]} (12... b5 $11) 13. Nf3 $14 {[%emt 0:01:04]} Nd7 {[%emt 0:13:16] Repels Ne5} 14. g4 {[%emt 0:04:05]} Ng7 {[%emt 0:00:42]} 15. Rhg1 {[%emt 0:03:49]} b5 {[%emt 0:13:08]} 16. Rde1 {[%emt 0:05:54]} Ne6 {[%emt 0:11:04]} (16... Bb7 $11) 17. g5 {[%emt 0:13:30] White is more active.} (17. Bxg6 {is more complex.} fxg6 18. Qxg6+ Kf8 19. g5) 17... hxg5 {[%emt 0:03:14] [#]} (17... Nxg5 18. Nxg5 hxg5 19. Bxg6 $16) (17... h5 $14) 18. Bxg6 $1 $18 {[%emt 0:04:07][%mdl 576] Demolition} fxg6 {[%emt 0:01:36]} (18... Kh8 19. Bf5) 19. Qxg6+ {[%emt 0:00:14]} Ng7 {[%emt 0:02:04]} 20. Qxc6 {[%emt 0:05:18]} (20. Nxg5 Nf8 21. Qxc6 Bb7 22. Qxb5 Qd7 $16) (20. Rxg5 $18 Nf8 21. Qxc6) 20... Nf6 $1 $14 {[%emt 0:11:42] And now ...Bf5 would win.} 21. Nxd5 {[%emt 0:13:14]} (21. Qxa8 Qc7 22. Ne5 (22. Nxg5 $2 b4 $19 {[%mdl 64] Pin}) (22. Rxg5 $2 Bf5 $17) 22... Bd7 23. Nxd7 Qxd7 $15) (21. Rxg5 $5 {[%cal Rc6a8]} Bd7 22. Qa6 $11) 21... Nxd5 {[%emt 0:01:11]} 22. Qxd5+ {[%emt 0:00:01]} Be6 {[%emt 0:01:31]} 23. Qxg5 {[%emt 0:01:12]} Rac8+ {[%emt 0:11:02] [#]} (23... Bxa2 $11 24. Qxe7 Rxe7) 24. Kb1 $1 $16 {[%emt 0:00:09] Threatens to win with e4. Really sharp! White leaves nothing to chance now.} Qc7 $4 {[%emt 0:00:16][%mdl 8192]} (24... Qxg5 $16 25. Nxg5 (25. Rxg5 Rf8 $14) 25... Rcd8) 25. d5 $18 {[%emt 0:01:33]} (25. Qxb5 Rf8 26. Qe5 Qxe5 27. Nxe5 Rxf2 $11) 25... Bxh3 {[%emt 0:00:55]} 26. Nd4 {[%emt 0:01:21] Qh6 would be deadly.} ({Not} 26. Qg6 Rf8 27. Nd4 (27. d6 Bf5+ $17) 27... Rxf2 $16) 26... Re5 $2 {[%emt 0:03:35]} (26... Qd7 27. Rg3 Rc5) 27. Qh6 {[%emt 0:04:51]} Qd7 {[%emt 0:02:06]} 28. Rg3 {[%emt 0:01:20] Black must now prevent Reg1. Black is weak on the dark squares} Bf5+ {[%emt 0:04:08]} 29. Nxf5 {[%emt 0:00:41]} Qxf5+ {[%emt 0:01:28] [#]} 30. e4 $1 {[%emt 0:00:06][%mdl 512]} Qh7 {[%emt 0:03:05]} 31. Qxh7+ {[%emt 0:00:22]} Kxh7 {[%emt 0:00:01]} 32. Rh1+ {[%emt 0:00:38]} Kg8 {[%emt 0:00:56]} 33. Rhg1 {[%emt 0:00:14]} Re7 {[%emt 0:00:20] [#]} 34. e5 $1 {[%emt 0:01:02][%mdl 512] Strongly threatening d6.} Rce8 {[%emt 0:01:19]} (34... Rxe5 35. Rxg7+) 35. f4 {[%emt 0:00:50]} Kf8 {[%emt 0:00:16]} 36. Kc2 {[%emt 0:04:05]} Rf7 {[%emt 0:00:37]} 37. Rg4 {[%emt 0:01:29]} (37. d6 $142) 37... Nh5 $2 {[%emt 0:02:05]} (37... Rc8+ 38. Kb1 Rc4) 38. Rg8+ {[%emt 0:02:11] White is clearly winning.} Ke7 {[%emt 0:00:00]} 39. d6+ {[%emt 0:00:20]} Kd7 {[%emt 0:00:00]} 40. Rxe8 {[%emt 0:00:27][%mdl 64] Deflection} Kxe8 {[%emt 0:00:00]} 41. e6 {[%emt 0:30:25] Threatening mate with Rg8+.} Rg7 {[%emt 0:01:52] Wards off Rg8+} 42. Rh1 {[%emt 0:00:00]} Nf6 {[%emt 0:01:57]} 43. Rh8+ {[%emt 0:00:00]} Rg8 {[%emt 0:00:29]} 44. Rxg8+ {[%emt 0:00:00]} (44. d7+ $142 Ke7 45. Rxg8 Nxg8 46. f5) 44... Nxg8 {[%emt 0:00:02]} 45. Kd3 {[%emt 0:00:00] An exciting game.   Weighted Error Value: White=0.63/Black=0.60} 1-0